bitfinex/quotes_ETHUSD_20210401
["timestamp","ask_amount","ask_price","bid_price","bid_amount"]
[1617237929377,3.535,1923.8,1923.7,10.3485]
[1617237929777,3.535,1923.8,1923.7,7.3485]
[1617237938862,4.455,1923.8,1923.7,7.3485]
[1617237940082,4.455,1923.8,1923.7,15.14228]
[1617237940281,4.455,1923.8,1923.7,18.48228]
[1617237941084,5.50833742,1923.8,1923.7,18.48228]
[1617237941284,4.455,1923.8,1923.7,18.48228]
[1617237941687,0.92,1923.8,1923.7,18.86228]
[1617237941885,0.92,1923.8,1923.7,19.00228]
[1617237942734,0.92,1923.8,1923.7,18.62228]
[1617237942938,0.083,1923.9,1923.8,5.0]
[1617237943135,0.083,1923.9,1923.8,16.33197]
[1617237944335,0.083,1923.9,1923.8,16.73197]
[1617237944534,0.083,1923.9,1923.8,11.73197]
[1617237945936,4.935,1924.4,1923.8,11.73197]
[1617237946139,4.935,1924.4,1924.0,5.01]
[1617237946336,5.215,1924.4,1924.0,5.01]
[1617237946536,3.0,1924.3,1924.0,5.01]
[1617237947138,3.01865994,1924.3,1924.0,5.01]
[1617237947338,5.215,1924.4,1924.0,5.01]
[1617237948151,5.215,1924.4,1924.0,12.80247]
[1617237948955,0.67,1924.2,1924.0,5.01]
[1617237949155,3.01865994,1924.0,1923.8,5.01]
[1617237949358,0.38,1923.9,1923.7,1.0]
[1617237950583,7.88831894,1924.2,1923.7,1.0]
[1617237950782,16.20601565,1924.2,1923.7,6.01]
[1617237950984,3.32,1924.1,1923.7,6.01]
[1617237951183,8.55831894,1924.2,1923.7,6.01]
[1617237951387,16.59601565,1924.2,1923.7,6.01]
[1617237951782,16.59601565,1924.2,1923.7,6.15]
[1617237952383,16.59601565,1924.2,1923.8,5.01]
[1617237952583,0.39,1924.1,1923.9,5.01]
[1617237952783,5.01,1924.1,1923.8,5.01]
[1617237953201,0.39,1924.1,1923.8,5.01]
[1617237953802,16.11194671,1924.2,1923.8,5.01]
[1617237954002,16.51194671,1924.2,1923.8,5.01]
[1617237954204,5.02,1924.1,1923.7,1.0]
[1617237954406,0.68,1924.0,1923.7,1.0]
[1617237955831,0.68,1924.0,1923.8,5.01]
[1617237956031,15.83194671,1924.2,1923.8,5.01]
[1617237956231,4.62906894,1924.4,1923.8,5.01]
[1617237956232,12.42257894,1924.4,1923.8,5.01]
[1617237956432,0.287,1924.2,1923.8,11.5572]
[1617237958254,0.287,1924.2,1923.8,19.35047]
[1617237958455,0.287,1924.2,1923.8,22.61047]
[1617237960778,0.4,1924.1,1923.8,22.61047]
[1617237960979,0.4,1924.1,1923.8,14.8172]
[1617237962180,0.4,1924.1,1923.9,5.01]
[1617237962383,0.287,1924.2,1923.9,2.96]
[1617237962581,7.79351,1924.3,1923.8,0.14]
[1617237962582,8.18351,1924.3,1923.8,0.14]
[1617237962780,11.57623888,1924.3,1923.8,0.14]
[1617237962980,19.51986665,1924.3,1923.9,5.01]
[1617237963181,7.79403,1924.2,1923.8,0.14]
[1617237963430,3.01865994,1924.0,1923.7,6.01]
[1617237963627,0.68,1924.1,1923.7,6.41]
[1617237963628,0.28,1924.1,1923.7,6.41]
[1617237964029,0.28,1924.1,1923.9,5.01]
[1617237964229,0.28,1924.1,1923.9,12.80294]
[1617237964632,0.39,1924.3,1923.9,12.80294]
[1617237964830,0.677,1924.3,1923.9,12.80294]
[1617237965033,0.677,1924.3,1924.0,21.885536]
[1617237965430,3.01865994,1924.2,1924.0,21.885536]
[1617237965630,3.01865994,1924.2,1924.0,26.325536]
[1617237966229,3.01865994,1924.2,1924.0,21.885536]
[1617237968231,3.42865994,1924.2,1924.0,21.885536]
[1617237969460,0.677,1924.3,1924.0,21.885536]
[1617237969661,0.677,1924.3,1924.0,21.835536]
[1617237970061,3.01865994,1924.2,1924.0,21.835536]
[1617237970265,2.99259326,1924.3,1924.2,5.98134006]
[1617237970862,4.19259326,1924.3,1924.2,5.98134006]
[1617237971286,2.99259326,1924.3,1924.2,5.98134006]
[1617237971483,10.78688326,1924.3,1924.2,5.98134006]
[1617237971682,11.98688326,1924.3,1924.2,5.98134006]
[1617237971883,20.02457997,1924.3,1924.2,5.98134006]
[1617237972082,11.98688326,1924.3,1924.2,5.98134006]
[1617237972282,20.02457997,1924.3,1924.2,5.98134006]
[1617237972484,27.21549612,1924.3,1924.2,5.98134006]
[1617237972685,3.0,1924.1,1924.0,21.835536]
[1617237972887,24.99668818,1924.1,1924.0,20.795536]
[1617237973083,33.03438489,1924.1,1924.0,20.795536]
[1617237973285,37.10226736,1924.1,1924.0,20.795536]
[1617237973685,42.10226736,1924.1,1924.0,20.795536]
[1617237973909,30.94869736,1924.1,1924.0,20.795536]
[1617237974110,12.10557918,1924.1,1924.0,20.795536]
[1617237974310,8.03769671,1924.2,1924.0,20.795536]
[1617237974509,4.535,1924.4,1924.0,23.895536]
[1617237974934,4.535,1924.4,1924.2,7.85]
[1617237976133,4.535,1924.4,1924.3,8.41]
[1617237976334,4.535,1924.4,1924.3,13.42]
[1617237976534,4.535,1924.4,1924.3,16.6]
[1617237977137,4.535,1924.4,1924.3,8.6]
[1617237977335,1.0,1924.4,1924.3,8.6]
[1617237977936,1.0,1924.4,1924.3,15.98071]
[1617237978138,1.0,1924.4,1924.3,16.39071]
[1617237978735,0.95,1924.4,1924.3,16.39071]
[1617237978937,14.9748,1924.9,1924.3,16.39071]
[1617237979155,0.301,1924.8,1924.4,5.15]
[1617237979354,0.301,1924.8,1924.7,0.38]
[1617237979555,0.301,1924.8,1924.6,1.5]
[1617237981156,3.33717172,1924.8,1924.6,1.5]
[1617237981354,0.301,1924.8,1924.6,1.5]
[1617237982184,8.09251,1924.8,1924.6,1.5]
[1617237982383,4.04,1924.7,1924.6,1.5]
[1617237983784,11.27,1924.7,1924.6,1.5]
[1617237983985,14.30617172,1924.7,1924.6,1.5]
[1617237984185,7.23,1924.7,1924.6,1.5]
[1617237985212,10.26617172,1924.7,1924.6,1.5]
[1617237985811,15.51617172,1924.7,1924.6,1.5]
[1617237986016,23.55386843,1924.7,1924.6,1.5]
[1617237986212,18.30386843,1924.7,1924.6,1.5]
[1617237986413,7.23,1924.7,1924.6,1.5]
[1617237986613,10.26617172,1924.7,1924.6,1.5]
[1617237987833,10.21617172,1924.7,1924.6,1.5]
[1617237988035,9.88617172,1924.7,1924.6,1.5]
[1617237989657,11.08617172,1924.7,1924.6,1.5]
[1617237989859,11.46617172,1924.7,1924.6,1.5]
[1617237990460,19.50386843,1924.7,1924.6,1.5]
[1617237990861,25.20386843,1924.7,1924.3,1.0]
[1617237991062,31.96386843,1924.4,1924.3,1.0]
[1617237991264,36.44386843,1924.4,1924.3,1.0]
[1617237991461,7.79578,1924.2,1924.0,21.79166551]
[1617237991661,15.41,1924.1,1924.0,21.79166551]
[1617237991861,23.44769671,1924.1,1924.0,21.79166551]
[1617237992060,31.44769671,1924.1,1924.0,21.79166551]
[1617237992290,11.14769671,1924.1,1924.0,21.79166551]
[1617237992690,16.89769671,1924.1,1924.0,21.79166551]
[1617237993087,11.14769671,1924.1,1924.0,21.79166551]
[1617237993288,3.11,1924.1,1924.0,21.79166551]
[1617237993488,11.14769671,1924.1,1924.0,21.79166551]
[1617237993687,10.31,1924.1,1924.0,21.79166551]
[1617237993891,18.34769671,1924.1,1924.0,21.79166551]
[1617237994491,3.11,1924.1,1924.0,23.29166551]
[1617237994690,8.26,1924.1,1924.0,23.29166551]
[1617237994905,16.29769671,1924.1,1924.0,23.29166551]
[1617237995109,8.26,1924.1,1924.0,23.29166551]
[1617237995506,19.32870051,1924.1,1924.0,23.29166551]
[1617237995706,16.29769671,1924.1,1924.0,23.29166551]
[1617237995905,24.29769671,1924.1,1924.0,21.79166551]
[1617237996306,16.29769671,1924.1,1924.0,21.79166551]
[1617237996509,8.26,1924.1,1924.0,21.79166551]
[1617237996706,7.87,1924.1,1924.0,21.79166551]
[1617237998238,2.72,1924.1,1924.0,21.79166551]
[1617237998437,20.01136671,1924.2,1924.0,21.79166551]
[1617237998836,5.14,1924.1,1924.0,21.79166551]
[1617237999238,11.97367,1924.2,1924.0,21.79166551]
[1617237999438,20.01136671,1924.2,1924.0,21.79166551]
[1617237999636,20.01136671,1924.2,1924.0,22.79166551]
[1617237999838,20.01136671,1924.2,1924.0,22.74166551]
[1617238000259,11.97367,1924.2,1924.0,22.74166551]
[1617238000459,20.01136671,1924.2,1924.0,22.74166551]
[1617238001260,11.97367,1924.2,1924.0,22.74166551]
[1617238003284,11.97367,1924.2,1924.0,26.14166551]
[1617238003483,11.69367,1924.2,1924.0,26.14166551]
[1617238003683,11.69367,1924.2,1924.1,1.5]
[1617238003884,11.69367,1924.2,1924.1,5.64]
[1617238004483,11.69367,1924.2,1924.1,1.5]
[1617238017418,14.7246738,1924.2,1924.1,1.5]
[1617238017614,24.70367,1924.2,1924.1,1.5]
[1617238017815,32.74136671,1924.2,1924.1,1.5]
[1617238018636,32.74136671,1924.2,1924.0,22.74166551]
[1617238019038,7.79522,1924.1,1924.0,22.74166551]
[1617238019238,21.25291671,1924.1,1924.0,22.74166551]
[1617238019638,29.25291671,1924.1,1924.0,22.74166551]
[1617238020867,28.84291671,1924.1,1924.0,22.74166551]
[1617238021068,12.80522,1924.1,1924.0,22.74166551]
[1617238021275,7.79522,1924.1,1924.0,22.74166551]
[1617238021469,7.79522,1924.1,1924.0,24.24166551]
[1617238023269,20.84291671,1924.1,1924.0,24.24166551]
[1617238023469,28.84291671,1924.1,1924.0,24.24166551]
[1617238023672,20.84291671,1924.1,1924.0,24.24166551]
[1617238023898,15.83291671,1924.1,1924.0,24.64166551]
[1617238024095,18.35960054,1924.2,1924.0,24.64166551]
[1617238024096,7.96529054,1924.2,1924.0,24.64166551]
[1617238024296,61.09846042,1924.4,1924.0,28.32166551]
[1617238024496,9.07530264,1924.4,1924.0,35.33496551]
[1617238024695,1.03760593,1924.4,1924.0,35.33496551]
[1617238025898,1.03760593,1924.4,1924.2,0.39]
[1617238026300,3.535,1924.5,1924.3,3.0310038]
[1617238026530,3.535,1924.5,1924.4,0.39]
[1617238026729,8.18458259,1924.8,1924.4,6.3403]
[1617238026927,8.18458259,1924.8,1924.4,7.5403]
[1617238027128,6.991,1924.8,1924.5,3.99988882]
[1617238027329,6.991,1924.8,1924.6,1.5]
[1617238027530,6.991,1924.8,1924.7,2.66013903]
[1617238027729,6.991,1924.8,1924.7,1.61]
[1617238027933,6.991,1924.8,1924.7,4.27346509]
[1617238028130,6.991,1924.8,1924.7,1.57879032]
[1617238028732,6.991,1924.8,1924.7,9.36699032]
[1617238030342,4.0012,1924.8,1924.7,9.36699032]
[1617238030546,14.9748,1924.9,1924.7,9.36699032]
[1617238030742,14.9748,1924.9,1924.8,0.39]
[1617238030943,14.9748,1924.9,1924.8,11.0549]
[1617238032167,14.9748,1924.9,1924.8,12.2549]
[1617238032368,14.9748,1924.9,1924.8,24.8194667]
[1617238032768,14.9748,1924.9,1924.8,22.8852051]
[1617238033373,13.1315,1924.9,1924.8,22.8852051]
[1617238033968,13.1315,1924.9,1924.8,20.5849]
[1617238036397,11.2908,1924.9,1924.8,20.5849]
[1617238039439,9.4508,1924.9,1924.8,20.5849]
[1617238040144,4.535,1925.4,1924.9,2.30279017]
[1617238040343,4.535,1925.4,1925.3,13.52234639]
[1617238040744,4.535,1925.4,1925.3,15.02234639]
[1617238041543,4.535,1925.4,1925.3,20.03234639]
[1617238041743,4.535,1925.4,1925.3,23.35234639]
[1617238042163,4.54116076,1925.4,1925.3,31.13753639]
[1617238042767,2.51566076,1925.4,1925.3,31.13753639]
[1617238043364,0.00616076,1925.4,1925.3,31.13753639]
[1617238045220,0.00616076,1925.4,1925.3,31.28205931]
[1617238045823,6.076e-05,1925.9,1925.5,4.25294876]
[1617238046023,6.076e-05,1925.9,1925.7,11.0261]
[1617238046226,6.076e-05,1925.9,1925.8,13.31]
[1617238046423,6.076e-05,1925.9,1925.8,13.72]
[1617238047021,6.076e-05,1925.9,1925.8,21.50384]
[1617238048426,6.076e-05,1925.9,1925.8,28.42384]
[1617238048829,4.9233565,1926.2,1925.8,21.61384]
[1617238049026,3.815,1926.2,1925.8,20.25384]
[1617238049226,3.815,1926.2,1925.9,0.4]
[1617238049428,3.815,1926.2,1926.0,1.5]
[1617238049828,3.535,1926.2,1926.0,1.5]
[1617238050265,3.535,1926.2,1926.0,1.45]
[1617238051267,3.535,1926.2,1926.0,2.45]
[1617238052070,3.945,1926.2,1926.0,2.45]
[1617238052270,2.48279322,1926.3,1926.0,2.45]
[1617238052271,0.28,1926.3,1926.0,2.45]
[1617238052468,0.4,1926.1,1926.0,2.45]
[1617238057102,1.0,1926.4,1926.1,4.26750194]
[1617238057305,1.0,1926.4,1926.2,10.85004194]
[1617238057501,1.0,1926.4,1926.3,15.81]
[1617238057700,1.0,1926.4,1926.3,16.11]
[1617238057923,0.38,1926.8,1926.3,6.65]
[1617238058123,0.39,1926.7,1926.3,5.15]
[1617238058324,2.7452855,1926.7,1926.6,1.5]
[1617238058523,2.4652855,1926.7,1926.6,1.5]
[1617238063170,2.47128838,1926.7,1926.6,1.5]
[1617238063972,2.08128838,1926.7,1926.6,1.5]
[1617238064577,0.00600288,1926.7,1926.6,1.5]
[1617238064775,0.00600288,1926.7,1926.6,6.51]
[1617238065607,0.00600288,1926.7,1926.6,9.28116]
[1617238067207,0.00600288,1926.7,1926.6,12.26116]
[1617238068621,0.00600288,1926.7,1926.6,18.27116]
[1617238068823,0.00600288,1926.7,1926.6,13.26116]
[1617238069024,0.00600288,1926.7,1926.6,13.65116]
[1617238069625,0.00600288,1926.7,1926.6,13.26116]
[1617238069828,2.88e-06,1926.7,1926.6,13.26116]
[1617238070627,11.00000288,1926.7,1926.6,5.48]
[1617238070827,15.90000288,1926.7,1926.6,3.5]
[1617238071043,23.93769959,1926.7,1926.6,3.5]
[1617238071644,23.93769959,1926.7,1925.4,12.96978]
[1617238071645,20.951,1926.6,1925.4,12.96978]
[1617238071844,20.951,1926.6,1925.4,14.16978]
[1617238071845,0.39,1925.7,1925.4,14.16978]
[1617238072043,0.39,1925.7,1925.4,12.96978]
[1617238072044,0.28,1925.7,1925.4,12.96978]
[1617238072347,0.28,1925.7,1925.5,3.0]
[1617238072543,8.8313,1925.8,1925.5,3.0]
[1617238072544,1.8954,1925.8,1925.5,3.0]
[1617238072943,1.44906044,1926.3,1925.7,0.39]
[1617238073143,0.28,1926.1,1925.7,0.53]
[1617238073343,2.0760781,1925.9,1925.7,0.53]
[1617238073543,0.28,1926.1,1926.0,0.9239219]
[1617238073969,0.28,1926.1,1925.8,0.41]
[1617238074369,0.28,1926.1,1926.0,7.7838]
[1617238074570,0.39,1926.5,1926.0,7.7838]
[1617238074771,8.03769671,1926.5,1926.0,7.7838]
[1617238074973,0.301,1926.4,1926.1,1.38]
[1617238075770,0.39,1926.3,1926.1,1.31]
[1617238076598,0.301,1926.4,1926.1,1.31]
[1617238076996,8.42769671,1926.5,1926.1,1.45]
[1617238077599,8.03769671,1926.5,1926.1,1.45]
[1617238078797,8.33169671,1926.5,1926.1,1.45]
[1617238079024,0.38,1926.3,1926.1,1.31]
[1617238080031,11.38,1926.4,1926.1,1.31]
[1617238080227,11.78,1926.4,1926.1,1.31]
[1617238080425,11.78,1926.4,1926.2,0.44611699]
[1617238081224,4.14,1926.3,1926.2,0.44611699]
[1617238082273,16.24886,1926.5,1926.2,0.44611699]
[1617238082475,2.74,1926.4,1926.2,0.44611699]
[1617238082876,10.77769671,1926.4,1926.2,0.44611699]
[1617238083274,8.03769671,1926.4,1926.2,0.44611699]
[1617238083474,8.1844,1926.5,1926.2,0.44611699]
[1617238083875,0.4,1926.4,1926.2,0.44611699]
[1617238084275,8.0644,1926.5,1926.2,0.44611699]
[1617238084475,16.4644,1926.5,1926.2,0.44611699]
[1617238084675,11.22,1926.4,1926.2,0.44611699]
[1617238084878,3.22,1926.4,1926.2,0.44611699]
[1617238085075,4.29217,1926.5,1926.2,0.44611699]
[1617238085076,11.92986671,1926.5,1926.2,0.44611699]
[1617238085276,3.89217,1926.5,1926.3,1.31]
[1617238085480,3.89217,1926.5,1926.4,0.44611699]
[1617238087498,2.0757679,1926.6,1926.4,0.44611699]
[1617238087699,4.2715,1926.7,1926.4,0.44611699]
[1617238087899,3.8915,1926.7,1926.4,0.44611699]
[1617238088102,19.03769671,1926.9,1926.4,0.44611699]
[1617238088103,19.03769671,1926.9,1926.4,0.84611699]
[1617238088301,11.0,1926.9,1926.5,1.31]
[1617238088500,11.0,1926.9,1926.5,9.23129]
[1617238088703,11.0,1926.9,1926.6,0.83611699]
[1617238089300,10.95,1926.9,1926.6,0.83611699]
[1617238089525,10.95,1926.9,1926.8,8.18008]
[1617238090730,10.95,1926.9,1926.8,21.03083054]
[1617238090926,10.95,1926.9,1926.8,26.05019677]
[1617238090927,7.8535,1926.9,1926.8,26.05019677]
[1617238091125,7.8535,1926.9,1926.8,24.85019677]
[1617238091328,7.8535,1926.9,1926.8,23.15083054]
[1617238091726,7.8535,1926.9,1926.8,24.73784144]
[1617238091925,7.8535,1926.9,1926.8,27.73784144]
[1617238092147,7.8535,1926.9,1926.8,28.93784144]
[1617238092749,7.8535,1926.9,1926.8,29.38395843]
[1617238092949,7.8535,1926.9,1926.8,29.56615708]
[1617238093548,7.8535,1926.9,1926.8,28.36615708]
[1617238093749,7.8535,1926.9,1926.8,29.56615708]
[1617238093949,6.0093,1926.9,1926.8,29.56615708]
[1617238096774,6.0093,1926.9,1926.8,26.77914618]
[1617238096973,4.1685,1926.9,1926.8,26.77914618]
[1617238100023,2.3311,1926.9,1926.8,26.77914618]
[1617238100822,2.3311,1926.9,1926.8,27.77914618]
[1617238101823,2.3311,1926.9,1926.8,28.97914618]
[1617238102024,2.3311,1926.9,1926.8,27.77914618]
[1617238102224,2.3311,1926.9,1926.8,24.79319564]
[1617238103049,0.4926,1926.9,1926.8,29.80319564]
[1617238103250,0.4926,1926.9,1926.8,24.21099699]
[1617238104248,0.4426,1926.9,1926.8,24.21099699]
[1617238105877,1.39,1927.4,1926.8,24.21099699]
[1617238106078,0.315,1927.3,1926.8,24.35099699]
[1617238106678,0.315,1927.3,1926.8,29.36099699]
[1617238108801,1.39,1927.4,1926.8,29.36099699]
[1617238109005,1.0,1927.4,1927.0,5.01]
[1617238109203,1.0,1927.4,1927.0,8.14025778]
[1617238109601,1.0,1927.4,1927.0,5.15]
[1617238109802,1.0,1927.4,1927.1,0.44611699]
[1617238110031,1.0,1927.4,1927.1,8.22502699]
[1617238112037,0.28,1927.5,1927.1,0.44611699]
[1617238112234,0.23,1927.5,1927.1,0.44611699]
[1617238112436,0.23,1927.5,1927.1,0.85611699]
[1617238113473,0.23,1927.5,1927.1,0.44611699]
[1617238113874,0.61,1927.5,1927.1,0.44611699]
[1617238114283,0.61,1927.5,1927.1,8.22524699]
[1617238115075,0.23,1927.5,1927.1,15.44534699]
[1617238115274,0.23,1927.5,1927.1,18.68534699]
[1617238116780,8.0,1927.7,1927.2,3.38531884]
[1617238116977,3.535,1927.8,1927.2,6.68531884]
[1617238117175,3.535,1927.8,1927.3,0.44611699]
[1617238117176,3.815,1927.8,1927.3,0.44611699]
[1617238117578,3.815,1927.8,1927.4,7.77776]
[1617238118609,3.535,1927.8,1927.4,7.91776]
[1617238118808,3.535,1927.8,1927.4,8.29776]
[1617238119006,3.535,1927.8,1927.4,11.03776]
[1617238120409,3.535,1927.8,1927.5,0.44611699]
[1617238121225,5.6092121,1927.8,1927.5,0.44611699]
[1617238122226,5.6092121,1927.8,1927.5,1.44611699]
[1617238122425,9.4983621,1927.8,1927.5,1.44611699]
[1617238122626,17.4983621,1927.8,1927.5,1.44611699]
[1617238123226,9.4983621,1927.8,1927.5,1.44611699]
[1617238123427,17.4983621,1927.8,1927.5,1.44611699]
[1617238124255,9.4983621,1927.8,1927.6,0.4]
[1617238124855,9.4983621,1927.8,1927.5,12.20924583]
[1617238125055,17.4983621,1927.8,1927.7,0.44611699]
[1617238125456,9.4983621,1927.8,1927.7,0.44611699]
[1617238125857,17.4983621,1927.8,1927.7,0.44611699]
[1617238126878,9.4983621,1927.8,1927.7,0.44611699]
[1617238127479,17.4983621,1927.8,1927.7,0.44611699]
[1617238128081,17.4983621,1927.8,1927.6,0.44611699]
[1617238129102,25.53605881,1927.8,1927.6,0.44611699]
[1617238129300,17.53605881,1927.8,1927.6,0.44611699]
[1617238129500,9.4983621,1927.8,1927.6,0.44611699]
[1617238131300,9.4483621,1927.8,1927.6,0.44611699]
[1617238133331,17.4483621,1927.8,1927.6,0.44611699]
[1617238134351,3.92,1927.7,1927.6,0.44611699]
[1617238134551,17.4483621,1927.8,1927.6,0.44611699]
[1617238135157,8.73,1927.7,1927.6,0.44611699]
[1617238135752,8.41769671,1927.7,1927.6,0.44611699]
[1617238135953,0.38,1927.7,1927.6,0.44611699]
[1617238136153,8.73,1927.7,1927.6,0.44611699]
[1617238136353,16.76769671,1927.7,1927.6,0.44611699]
[1617238136554,24.54676671,1927.7,1927.6,0.44611699]
[1617238136781,32.54676671,1927.7,1927.6,0.44611699]
[1617238140409,33.74676671,1927.7,1927.6,0.44611699]
[1617238140804,36.74676671,1927.7,1927.6,0.44611699]
[1617238141005,36.74676671,1927.7,1927.5,1.0]
[1617238141006,36.74676671,1927.7,1926.1,0.09406894]
[1617238141007,0.35,1927.2,1926.1,0.09406894]
[1617238141205,0.35,1927.2,1926.1,0.23406894]
[1617238141206,0.39,1926.7,1926.1,0.23406894]
[1617238141414,0.301,1926.6,1926.1,0.23406894]
[1617238141605,0.301,1926.6,1926.1,0.14]
[1617238141606,3.2710173,1926.6,1926.1,0.14]
[1617238141807,2.3764155,1926.6,1926.1,0.14]
[1617238142031,11.92924671,1926.5,1926.1,0.14]
[1617238142231,2.9700173,1926.4,1925.8,7.78395]
[1617238142433,2.9700173,1926.4,1925.7,0.14]
[1617238142434,0.308,1926.3,1925.7,0.14]
[1617238143429,4.17919,1926.2,1925.9,0.39]
[1617238143630,8.0,1926.4,1926.0,0.4]
[1617238143828,8.0,1926.4,1926.2,0.41]
[1617238144031,8.0,1926.4,1926.0,0.14]
[1617238144230,8.0,1926.4,1926.0,0.52]
[1617238144653,0.28,1926.5,1926.0,0.52]
[1617238144854,3.535,1926.7,1926.2,0.39]
[1617238145054,3.815,1926.7,1926.2,0.53]
[1617238145255,2.0756738,1926.4,1926.2,0.53]
[1617238147479,5.50833423,1926.3,1926.2,0.53]
[1617238147679,5.50833423,1926.3,1926.1,7.78279]
[1617238148480,5.50833423,1926.3,1926.2,0.4]
[1617238148881,2.52254539,1926.3,1926.2,0.4]
[1617238149482,2.52254539,1926.4,1926.2,0.4]
[1617238149907,8.0,1926.6,1926.2,0.4]
[1617238149908,2.52254539,1926.5,1926.2,0.4]
[1617238150309,2.52254539,1926.6,1926.2,0.4]
[1617238150509,2.52254539,1926.6,1926.2,8.18232]
[1617238151309,6.76254539,1926.6,1926.2,8.18232]
[1617238151509,2.52254539,1926.5,1926.2,9.18232]
[1617238151708,3.66,1926.5,1926.2,9.18232]
[1617238151910,2.29126718,1926.4,1926.2,9.18232]
[1617238152110,2.29126718,1926.4,1926.2,12.12232]
[1617238152310,2.29126718,1926.6,1926.2,12.12232]
[1617238152539,2.29126718,1926.6,1926.3,2.97357432]
[1617238152739,2.29126718,1926.6,1926.5,0.39]
[1617238153541,2.29126718,1926.6,1926.2,10.3916]
[1617238153740,2.29126718,1926.6,1926.3,0.39]
[1617238154139,2.29126718,1926.6,1926.5,4.84]
[1617238154539,2.29126718,1926.6,1926.5,0.39]
[1617238154740,2.29126718,1926.6,1926.4,13.74686]
[1617238154940,2.29126718,1926.6,1926.4,12.33686]
[1617238155590,3.535,1926.7,1926.4,12.33686]
[1617238155791,3.535,1926.7,1926.5,7.78133]
[1617238156792,3.535,1926.7,1926.4,0.9556]
[1617238156992,3.535,1926.7,1926.3,10.90501]
[1617238157390,3.535,1926.7,1926.3,10.51501]
[1617238157592,3.535,1926.7,1926.3,0.14]
[1617238157802,0.294,1926.6,1926.2,0.12536953]
[1617238158805,3.26757432,1926.6,1926.2,0.52536953]
[1617238159002,3.535,1926.7,1926.2,0.52536953]
[1617238159205,5.8903406,1926.7,1926.2,0.52536953]
[1617238159401,5.8903406,1926.7,1926.5,0.39]
[1617238159402,3.89163,1926.6,1926.5,0.39]
[1617238159602,13.92803731,1926.7,1926.5,0.39]
[1617238159801,13.8903406,1926.7,1926.4,0.39]
[1617238160001,2.97357432,1926.6,1926.2,0.26536953]
[1617238160201,13.8903406,1926.7,1926.2,0.26536953]
[1617238160406,13.8903406,1926.7,1926.2,0.14]
[1617238160407,17.7819606,1926.7,1926.2,0.14]
[1617238160607,4.08,1926.6,1926.2,0.14]
[1617238161007,4.08,1926.6,1926.0,5.01]
[1617238161208,26.22965731,1926.7,1926.0,5.01]
[1617238161412,0.294,1926.5,1926.0,5.15]
[1617238161607,0.294,1926.5,1926.0,0.14]
[1617238162207,0.294,1926.5,1926.0,7.92339]
[1617238163035,0.294,1926.5,1925.9,0.13925282]
[1617238163036,0.38,1926.3,1925.9,0.13925282]
[1617238163236,0.38,1926.3,1925.6,1.0]
[1617238163237,10.75926432,1926.2,1925.6,1.0]
[1617238163436,3.35357432,1925.9,1925.6,1.0]
[1617238163635,11.68527103,1925.9,1925.6,1.0]
[1617238163832,8.33169671,1925.9,1925.6,1.0]
[1617238164037,12.22508671,1925.9,1925.6,1.39]
[1617238164431,11.37769671,1925.8,1925.6,1.39]
[1617238164631,21.45412251,1925.8,1925.6,1.39]
[1617238164838,8.03769671,1925.7,1925.6,1.39]
[1617238165035,13.4164258,1925.8,1925.6,1.0]
[1617238165237,2.0764258,1925.8,1925.6,1.0]
[1617238165435,2.0764258,1925.8,1925.6,1.39]
[1617238165665,2.0764258,1925.8,1925.6,1.0]
[1617238167669,18.5468896,1926.2,1925.6,1.0]
[1617238167869,3.26757432,1926.1,1925.6,1.0]
[1617238168071,24.84527103,1926.1,1925.6,1.0]
[1617238168482,19.30527103,1926.1,1925.6,1.0]
[1617238168682,3.92,1926.0,1925.6,1.0]
[1617238168886,3.92,1926.0,1925.6,8.78511]
[1617238169084,2.0761751,1925.9,1925.6,8.78511]
[1617238169287,5.04974942,1925.9,1925.6,8.78511]
[1617238169885,5.04974942,1925.9,1925.6,1.0]
[1617238170284,13.08744613,1925.9,1925.6,1.0]
[1617238170486,5.04974942,1925.9,1925.6,1.0]
[1617238171130,13.08744613,1925.9,1925.6,1.0]
[1617238171527,21.08744613,1925.9,1925.6,1.0]
[1617238171728,3.78,1925.8,1925.6,1.0]
[1617238171936,11.81769671,1925.8,1925.6,1.0]
[1617238172128,10.0761751,1925.9,1925.6,1.0]
[1617238172530,10.0761751,1925.9,1925.6,1.39]
[1617238172731,2.0761751,1925.9,1925.6,1.39]
[1617238173938,2.0761751,1925.9,1925.6,9.17529]
[1617238174338,2.0761751,1925.9,1925.6,8.78529]
[1617238174543,2.0761751,1925.9,1925.6,1.0]
[1617238175742,2.0761751,1925.9,1925.6,1.4]
[1617238176557,0.28,1926.0,1925.6,1.4]
[1617238176758,0.28,1926.0,1925.6,9.18549]
[1617238178779,2.3562166,1926.0,1925.6,1.4]
[1617238179379,10.3562166,1926.0,1925.6,1.4]
[1617238179583,12.39769671,1925.9,1925.6,1.4]
[1617238179785,12.39769671,1925.9,1925.6,1.0]
[1617238180383,16.29097671,1925.9,1925.6,1.0]
[1617238180582,8.25328,1925.9,1925.6,1.0]
[1617238180782,3.7,1925.8,1925.6,1.0]
[1617238181184,16.17357432,1925.7,1925.6,1.0]
[1617238181415,24.21127103,1925.7,1925.6,1.0]
[1617238181615,32.21127103,1925.7,1925.6,1.0]
[1617238182814,16.03769671,1925.7,1925.6,1.0]
[1617238183016,8.0,1925.7,1925.6,1.0]
[1617238183415,2.5960875,1925.8,1925.6,1.0]